Cogmind - Beta 12 @@@ ROGUE MODE // 2023.03.05 @ 17:00:10 Player: Pimski Result: Destroyed by 8R-AWN with 8R-AWN's Boregun Performance ------------- Evolutions (0) 0 Regions Visited (3) 600 Robots Destroyed (11) 55 Value Destroyed (160) 160 Prototype IDs (24) 480 Alien Tech Used (0) 0 Bonus (-73) -73 TOTAL SCORE: 1222 Bonus ------- Aligned with FarCom 300 Friendly Fire -373 Cogmind --------- Core Integrity 0/250 Matter 135/300 Energy 119/125 System Corruption 0% Temperature Hot (268) Movement Core (1500) Ox29 Location -10/Exiles Parts ------- > --- POWER (1) -------- Light Ion Engine > --- PROPULSION (2) --- (None) > --- UTILITY (2) ------ Huge Storage Unit Core Shielding > --- WEAPON (2) ------- Field Laser Minigun > --- INVENTORY (25) --- Light Ion Engine Wheel Large Storage Unit High-capacity Storage Unit High-capacity Storage Unit High-capacity Storage Unit Superbattery (1500) Experimental Sensor Array Core Shielding Sensor Drone Bay (20/20) AWS/Thermal Light Assault Rifle Light Assault Rifle Light Assault Rifle Light Assault Rifle Bore Cannon Grenade Launcher Rocket Launcher Improved Grenade Launcher Peak State ------------ > --- POWER ------------ Light Ion Engine > --- PROPULSION ------- Light Treads Light Treads > --- UTILITY ---------- Huge Storage Unit Core Shielding > --- WEAPON ----------- AWS/Thermal > --- INVENTORY -------- Light Ion Engine Wheel Wheel Large Storage Unit High-capacity Storage Unit High-capacity Storage Unit High-capacity Storage Unit Superbattery Experimental Sensor Array Core Shielding Sensor Drone Bay Field Laser Light Assault Rifle Light Assault Rifle Light Assault Rifle Light Assault Rifle Minigun Minigun Bore Cannon Grenade Launcher Rocket Launcher Improved Grenade Launcher [Rating: 26] Favorites ----------- Power Light Ion Engine Engine Light Ion Engine Propulsion Light Treads Treads Light Treads Leg Aluminum Leg Wheel Wheel Utility Core Shielding Device Seismic Detector Storage Huge Storage Unit Protection Core Shielding Weapon Medium Laser Energy Gun Medium Laser Ballistic Gun Assault Rifle Launcher Rocket Launcher Build | -11 -10 -10 -10 ------- Run | Jun Mat Min Exi Slots Evolved . | . . . . Power . | . . . . Propulsion . | . . . . Utility . | . . . . Weapon . | . . . . Parts Attached 25 | 1 6 5 13 Power 4 | . 1 1 2 Engine 4 | . 1 1 2 Core . | . . . . Reactor . | . . . . Propulsion 3 | . 2 . 1 Treads 2 | . 2 . . Leg . | . . . . Wheel 1 | . . . 1 Hover . | . . . . Flight . | . . . . Utility 5 | 1 2 2 . Device 2 | 1 . 1 . Storage 1 | . 1 . . Processor . | . . . . Hackware . | . . . . Protection 2 | . 1 1 . Artifact . | . . . . Weapon 13 | . 1 2 10 Energy Gun 3 | . . 1 2 Energy Cannon . | . . . . Ballistic Gun 8 | . 1 1 6 Ballistic Cannon . | . . . . Launcher 2 | . . . 2 Special Weapon . | . . . . Impact Weapon . | . . . . Slashing Weapon . | . . . . Piercing Weapon . | . . . . Special Melee Weapon . | . . . . Unidentified Prototypes 1 | . . 1 . Parts Lost 5 | . . . 5 Power 1 | . . . 1 Propulsion 3 | . . . 3 Utility . | . . . . Weapon 1 | . . . 1 Highest Loss Streak 5 | . . . 5 To Critical Strikes 3 | . . . 3 Average Slot Usage (%) 99 | . 99 99 99 Engine 13 | . 14 14 13 Treads 26 | . 22 28 27 Storage 14 | . 14 14 14 Protection 13 | . 9 14 14 Energy Gun 9 | . 15 14 5 Ballistic Gun 17 | . 12 13 22 Naked Turns . | . . . . Heaviest Build 90 | 13 90 90 90 Greatest Support 40 | 20 40 40 40 Greatest Overweight (x) 2 | . 2 2 2 Average Overweight (x) 1 | . . 2 2 Largest Inventory Capacity 25 | 8 25 25 25 Average Capacity 23 | 8 16 25 25 Most Carried 25 | 8 17 25 25 Average Carried 21 | 6 10 22 23 Final Capacity 25 | 8 25 25 25 Final Carried 25 | 8 17 25 20 Class Distribution -------------------- 100% | Mutant Dominant Class ---------------- Mutant | -10/Materials Mutant | -10/Mines Mutant | -10/Exiles Resources | -11 -10 -10 -10 ----------- Run | Jun Mat Min Exi Matter Collected 733 | 210 87 26 410 Remotely . | . . . . Salvage Created 366 | 89 216 53 8 Parts 20 | 3 13 4 . Haulers Intercepted . | . . . . Recyclers Shooed . | . . . . Parts Field Recycled . | . . . . Retrieved Matter . | . . . . Parts Self-Destructed . | . . . . Prevented . | . . . . Kills | -11 -10 -10 -10 ------- Run | Jun Mat Min Exi Combat Hostiles Destroyed 13 | . 5 3 5 Guns 8 | . 5 3 . AOE 5 | . . . 5 Classes Destroyed 5 | 2 2 . 1 Tunneler 1 | 1 . . . Recycler 2 | 1 1 . . Swarmer 6 | . 3 3 . Grunt 2 | . 2 . . Assembled 6 | . . . 6 Best Kill Streak 5 | 2 3 3 5 Combat Bots Only 5 | . 3 3 5 Max Kills in Single Turn 3 | 1 1 1 3 Gunslinging . | . . . . Exploded 3 | . . . 3 Melee . | . . . . Uniques/NPCs Destroyed . | . . . . Combat | -11 -10 -10 -10 -------- Run | Jun Mat Min Exi Damage Taken 1255 | . 205 94 956 Core 257 | . 51 17 189 Absorbed by Shields . | . . . . Redirected to Shielding 44 | . 2 4 38 Core Remaining (%) 100 | 100 . . . Volleys Fired 66 | 6 17 8 35 Largest 2 | 2 2 2 2 Hottest 100 | 100 100 70 88 Shots Fired 130 | 12 34 16 68 Gun 124 | 12 34 16 62 Cannon . | . . . . Launcher 6 | . . . 6 Special . | . . . . Kinetic 74 | . 13 8 53 Thermal 50 | 12 21 8 9 Explosive 6 | . . . 6 Electromagnetic . | . . . . Robot Hit Streak 13 | 6 8 3 13 Robot Miss Streak 5 | 4 5 3 1 Penetration Max . | . . . . Secondary Targets . | . . . . Shots Hit Robots 94 | 7 21 8 58 Core Hits 33 | 3 11 5 14 Critical Kills . | . . . . Critical Parts Destroyed . | . . . . Critical Strikes 4 | . 4 . . Burn 4 | . 4 . . Melee Attacks . | . . . . Impact . | . . . . Slashing . | . . . . Piercing . | . . . . Sneak Attacks . | . . . . Combat Hostiles . | . . . . Follow-up Attacks . | . . . . Damage Inflicted 2028 | 87 282 108 1551 Guns 1376 | 87 266 105 918 Cannons . | . . . . Explosions 623 | . . . 623 Melee . | . . . . Ramming 29 | . 16 3 10 Kinetic 945 | . 92 54 799 Thermal 431 | 87 174 51 119 Explosive 623 | . . . 623 Electromagnetic . | . . . . Impact . | . . . . Slashing . | . . . . Piercing . | . . . . Highest Corruption . | . . . . Average Corruption . | . . . . Corruption Purged . | . . . . Corruption Blocked . | . . . . Overload Shots . | . . . . Overflow Damage 37 | . . . 37 Projectiles . | . . . . Explosions 37 | . . . 37 Melee . | . . . . Knockbacks . | . . . . Impact . | . . . . Kinetic . | . . . . Secondary . | . . . . Self-Inflicted Damage . | . . . . Shots . | . . . . Rammed 8 | . 2 2 4 Targets Rammed 8 | . 2 2 4 Kicked . | . . . . Crushed . | . . . . Highest Temperature 268 | 195 251 27 268 Average Temperature 73 | 86 111 11 55 Received Heat Transfer 134 | . 96 . 38 Effects 1 | . . . 1 Energy Bleed 1 | . . . 1 Siege Activations . | . . . . Robots Corrupted . | . . . . Combat Hostiles . | . . . . Parts Fried . | . . . . Impact Corruptions . | . . . . Robots Melted . | . . . . Combat Hostiles . | . . . . Parts Melted 3 | 1 1 1 . Heat Transferred 1284 | 259 814 148 63 Parts Sabotaged . | . . . . Parts Stolen . | . . . . Parts Stripped . | . . . . Power Chain Reactions . | . . . . Missiles Intercepted . | . . . . Alert | -11 -10 -10 -10 ------- Run | Jun Mat Min Exi Peak Influence 139 | 10 139 96 . Initial 11 | . 6 11 . Average 32 | 6 53 24 . Maximum Alert Level . | . . . . Low Security (%) 100 | 100 100 100 . Level 1 . | . . . . Level 2 . | . . . . Level 3 . | . . . . Level 4 . | . . . . Level 5 . | . . . . High Security . | . . . . Max Security . | . . . . Squads Dispatched . | . . . . Investigation . | . . . . Extermination . | . . . . Reinforcement . | . . . . Assault . | . . . . Garrison . | . . . . Intercept . | . . . . Searches Triggered . | . . . . Construction Impeded . | . . . . Haulers Reinforced . | . . . . Active Scanning Responses . | . . . . Cargo Convoy Interrupts . | . . . . Stealth | -11 -10 -10 -10 --------- Run | Jun Mat Min Exi Distress Signals . | . . . . Communications Jammed . | . . . . Distress Signals . | . . . . Times Spotted 19 | . 8 4 7 Peak Tracking Total 7 | . 3 3 7 Tactical Retreats 1 | . . 1 . Traps | -11 -10 -10 -10 ------- Run | Jun Mat Min Exi Traps Triggered 2 | . . 2 . Indirectly . | . . . . Trap Hack Attempts . | . . . . Triggered . | . . . . Disarmed . | . . . . Reprogrammed . | . . . . Reused . | . . . . Traps Extracted . | . . . . Installed . | . . . . Triggered . | . . . . Machines | -11 -10 -10 -10 ---------- Run | Jun Mat Min Exi Machines Disabled 4 | . . . 4 Max in Single Turn 2 | . . . 2 Machines Repaired . | . . . . Machines Sabotaged . | . . . . Overloaded Fab Kills . | . . . . Hacking | -11 -10 -10 -10 --------- Run | Jun Mat Min Exi Machines Accessed 6 | . 2 2 2 Terminals 2 | . 2 . . Fabricators . | . . . . Repair Stations . | . . . . Recycling Units . | . . . . Scanalyzers . | . . . . Garrison Access . | . . . . Total Hacks 8 | . 4 2 2 Successful 5 | . 1 2 2 Failed 3 | . 3 . . Catastrophic . | . . . . Database Lockouts . | . . . . Manual 1 | . . . 1 Terminals 4 | . 4 . . Fabricators . | . . . . Repair Stations . | . . . . Recycling Units . | . . . . Scanalyzers . | . . . . Garrison Access . | . . . . Terminal Hacks 5 | . 1 2 2 Record 1 | . . . 1 Open Door 2 | . . 2 . Branch Access Points 1 | . 1 . . EX-Prototype ID Bank 1 | . . . 1 Fabricator Hacks . | . . . . Repair Station Hacks . | . . . . Recycling Unit Hacks . | . . . . Scanalyzer . | . . . . Garrison Access Hacks . | . . . . Unauthorized Hacks . | . . . . Terminals . | . . . . Fabricators . | . . . . Repair Stations . | . . . . Recycling Units . | . . . . Scanalyzers . | . . . . Garrison Access . | . . . . Data Cores Recovered . | . . . . Used . | . . . . Hacking Detections 2 | . 2 . . Full Trace Events . | . . . . Feedback Events . | . . . . Feedback Blocked . | . . . . Robot Schematics Acquired . | . . . . Robots Built . | . . . . Authchips . | . . . . Time . | . . . . Total Robot Build Rating . | . . . . Part Schematics Acquired . | . . . . Parts Built . | . . . . Authchips . | . . . . Time . | . . . . Total Part Build Rating . | . . . . Parts Repaired . | . . . . Time . | . . . . Parts Recycled . | . . . . Recycled Matter . | . . . . Retrieved Matter . | . . . . Retrieved Components . | . . . . Parts Scanalyzed . | . . . . Part Schematics Acquired . | . . . . Parts Damaged . | . . . . Bothacking | -11 -10 -10 -10 ------------ Run | Jun Mat Min Exi Used RIF Installer . | . . . . Robots Hacked . | . . . . Non-combat . | . . . . Combat . | . . . . Robot Hacks Applied . | . . . . Relay Couplers Released . | . . . . Fabnet Peak Effective % . | . . . . Robots Rewired . | . . . . Allies Hacked . | . . . . Hacks Repelled . | . . . . Allies | -11 -10 -10 -10 -------- Run | Jun Mat Min Exi Total Allies 3 | . . 3 . Largest Group 3 | . . 3 3 Highest-Rated Group 40 | . . 40 40 Highest-Rated Ally 16 | . . 16 16 Total Orders 3 | . . . 3 STAY 3 | . . . 3 Ally Attacks 26 | . . . 26 Total Damage 154 | . . . 154 Kills 2 | . . . 2 Allies Corrupted . | . . . . Allies Melted . | . . . . Intel | -11 -10 -10 -10 ------- Run | Jun Mat Min Exi Robot Analysis Total . | . . . . Derelict Logs Recovered 1 | . . 1 . Drone Launches . | . . . . Drone Recoveries . | . . . . Exploration | -11 -10 -10 -10 ------------- Run | Jun Mat Min Exi Turns Passed 4270 | 52 667 1444 2107 Spaces Moved 1343 | 24 275 435 609 Core . | . . . . Treads 1242 | . 198 435 609 Legs 101 | 24 77 . . Wheels . | . . . . Hover . | . . . . Flight . | . . . . Fastest Speed 120 | 120 120 320 320 Average Speed 292 | 120 205 320 320 Slowest Speed 320 | 120 320 320 320 Overloaded Moves . | . . . . Propulsion Burnouts . | . . . . Robots Hopped . | . . . . Cave-ins Triggered . | . . . . Exploration Rate (%) 46 | 4 39 75 67 Regions Visited 3 Branch Regions 2 Pre-discovered Areas 1 | . . . 1 Known Exits Taken 1 | . 1 . . Unknown Exits Taken 2 | 1 . 1 . Scrap Searched 1 | . . 1 . Spaces Dug . | . . . . Terrain Destroyed 23 | . . . 23 Melee . | . . . . Projectile . | . . . . AOE 23 | . . . 23 Terrain Rammed . | . . . . Walls Destroyed . | . . . . Machines Disabled . | . . . . Actions | -11 -10 -10 -10 --------- Run | Jun Mat Min Exi Total 1560 | 34 347 468 711 Wait 35 | 2 22 5 6 Move 1340 | 23 274 434 609 Hop . | . . . . Pick Up 47 | 2 16 10 19 Fast Attach 4 | 1 1 2 . Attach 9 | . 2 1 6 Detach 4 | . . 1 3 Swap 12 | . 3 2 7 Drop 35 | . 10 3 22 Fire 66 | 6 17 8 35 Melee . | . . . . Ram . | . . . . Kick . | . . . . Crush 8 | . 2 2 4 Escape Stasis . | . . . . Rewire . | . . . . Trap . | . . . . Miscellaneous . | . . . . Route ------- -11/Junkyard -10/Materials (discovered 3 exits: [*Mat] / *Min x2) -10/Mines -10/Exiles (discovered 1 exit: [*Min]) History --------- Turn | Location | Event 16 | -11/Junkyard | Discovered new exit (range 3) 53 | -11/Junkyard | Entered Materials 53 | -10/Materials | Discovered new exit (range 8) 251 | -10/Materials | Discovered new exit (range 15) 275 | -10/Materials | Identified exit to Mines 307 | -10/Materials | Build established: Mutant 720 | -10/Materials | Entered Mines 1024 | -10/Mines | Found a damaged Exp. Sensor Array with a note attached 1031 | -10/Mines | Found Prototype Device 1211 | -10/Mines | A weapon hastily lodged in a ceiling crevice suddenly fell to the ground 1276 | -10/Mines | Learned 2 Materials zone layouts 1297 | -10/Mines | Received a Rocket Launcher from a helpful Derelict 1499 | -10/Mines | Found the Drone Emporium 1514 | -10/Mines | Found Prototype Device 1515 | -10/Mines | Identified Sensor Drone Bay 1745 | -10/Mines | Deemed a non-threat by the Exiles lab entrance 1745 | -10/Mines | Discovered new exit (range 5) 1944 | -10/Mines | Met a Derelict who couldn't figure out how to use a Trap Extractor 2068 | -10/Mines | Assisted by bots powering up and referring to "LRC-V3" 2164 | -10/Mines | Entered Exiles 2164 | -10/Exiles | Accompanied by 3 allies 2431 | -10/Exiles | Met 8R-AWN 2476 | -10/Exiles | Met EX-HEX 2623 | -10/Exiles | Met EX-DEC 2674 | -10/Exiles | Learned location of Zion (-7) 2732 | -10/Exiles | Met EX-BIN 2777 | -10/Exiles | Aligned with FarCom system 2780 | -10/Exiles | Given EX-Vault access code 2854 | -10/Exiles | Opened EX-Vault 2868 | -10/Exiles | Found YOLO Cannon 2879 | -10/Exiles | Found Superbattery 2884 | -10/Exiles | Found AWS/Thermal 2958 | -10/Exiles | Warned to stay clear of 0b10 Research branches 3172 | -10/Exiles | Discovered new exit (range 15) 4153 | -10/Exiles | Attacked by the Exiles 4207 | -10/Exiles | Core integrity fell below 50% 4242 | -10/Exiles | Core integrity fell below 20% 4271 | -10/Exiles | Destroyed by 8R-AWN with 8R-AWN's Boregun Last Messages --------------- 04224_ Penetrated by HV Slug. 04224_ HV Slug penetrates Earth. 04224_ Penetrated by HV Slug. 04224_ HV Slug penetrates Earth. 04225_ The unstable cave ceiling collapses. 04227_ Earth collapses. 04228_ Penetrated by HV Slug. 04237_ Critical hit (Destroy). 04237_ Lgt. Treads destroyed. 04241_ Penetrated by HV Slug. 04241_ HV Slug penetrates Wall. 04243_ The unstable cave ceiling collapses. 04245_ Penetrated by HV Slug. 04245_ Critical hit (Destroy). 04245_ Minigun destroyed. 04249_ Penetrated by HV Slug. 04249_ Wheel destroyed. 04249_ Penetrated by HV Slug. 04265_ Overheating: Energy bleed (-27). 04266_ Penetrated by HV Slug. Map ----- +----------------------------------------------------+ | """#??????????????????????????????????? | | """"??????????????????????????????????? | | """#??????????????????????????????????? | | "X" """"??????????????????????????????????? | | """ #??????????????????????????????????? | | """""""""#??????????????????????????????????? | | ###########??????????????????????????????????? | | #????????????????????????????????????????????? | | #????????????????????????????????????????????? | | ##???????????????????????????????????????????? | | ##???###########???? ???????????????????????? | | #####"""" """"##??? ???????????????????????? | | " """ """"##?? ???????????????????????? | | "" " #?? ???????????????????????? | | """#?? ???????????????????????? | | a"#?? ????????#####??????????? | | " "##? ???????##" #??????????? | | "##;##?????#" #??????????? | | "" ""; #????##" ##?????????? | | #""" ; #??### ###???????? | | #####""" % ;;#??# ######### | | ????##""" %!=!!;#### #""""## | | ?????#"""" =! !!;## | | ????##"" %! ## | | ?####"""" % #### | | ##""" @ "#?#"""""#### | | """ g # ""##?#######??#### | | ######??????????????## | | ##????????????????????? | | #?????????????????????? | | "" #?????????????????????? | | ##""" " " "" % ##?????????????????????? | | ######""" """ ??????????????????????? | | #????###""""## # # # ##??????????????????????? | | ####???######## ####????????????????????????? | | " #??????????######???????????????????????????? | | #???????????????????????????????????????????? | | "#???????????????????????????????????????????? | | !"" "#???????????????????????????????????????????? | | ######???????????????????????????????????????????? | | ?????????????????????????????????????????????????? | | ?????????????????????????????????????????????????? | | ?????????????????????????????????????????????????? | | ?????????????????????????????????????????????????? | | ?????????????????????????????????????????????????? | | ?????????????????????????????????????????????????? | | ?????????????????????????????????????????????????? | | ?????????????????????????????????????????????????? | | ?????????????????????????????????????????????????? | | ?????????????????????????????????????????????????? | +----------------------------------------------------+ Best States ------------- Heat Dissipation 25 Energy Generation 10 Energy Capacity 250 Matter Stores 300 Matter Capacity 300 Sight Range 16 Terrain Scan Density 10 Core Shielding 20 Evasion (%) 55 Recoil Reduction 2 Item Schematics ----------------- None Robot Schematics ------------------ None Fabricated ------------ Nothing Alien Tech Used ----------------- None Achievements -------------- None Challenges ------------ None Game ------ Seed GrapheneGatlingLauncher Manual? 0 Play Time 00:25:17 Cumulative 785.3 hours Start 2023.03.05 @ 11:40:49 End 2023.03.05 @ 17:00:10 Sessions 3 Manual Loads 0 Difficulty Rogue Special Mode None Game No. 513 Rogue 513 Adventurer 0 Explorer 0 Win Type - Total 113 Types 77/7/8/10/5/1/4/0/1 Lore% 89 Gallery% 86 Achievement% 82 Wizard Run 0 Options --------- ASCII 0 Keyboard 0 Movement Numpad Keybinds 0 Fullscreen 2 Font 18/SmallcapsGlow Map View 76x50 Tactical HUD 1 Map Filters NONE Filters NONE Steam 1 RUN: 99ff72f3-1186-4090-8442-bb81bd4d24a7